fUST/lending_fUST_20250722
["ID","MTS","AMOUNT","RATE_DAILY","PERIOD"]
[373984235,1753169443042,-500.0,0.00017419,2]
[373984237,1753169443051,-1075.04,0.00017521,2]
[373984239,1753169443060,-500.40777051,0.00017522,2]
[373984241,1753169443069,-460.0,0.00017522,2]
[373984243,1753169443080,-460.0,0.00017522,2]
[373984245,1753169443091,-460.0,0.00017522,2]
[373984247,1753169443100,-460.0,0.00017522,2]
[373984249,1753169443110,-460.0,0.00017522,2]
[373984251,1753169443119,-460.0,0.00017522,2]
[373984253,1753169443129,-460.0,0.00017522,2]
[373984255,1753169443137,-460.0,0.00017522,2]
[373984257,1753169443147,-460.0,0.00017522,2]
[373984258,1753169443156,-460.0,0.00017522,2]
[373984260,1753169443166,-460.0,0.00017522,2]
[373984262,1753169443175,-460.0,0.00017522,2]
[373984265,1753169443187,-460.0,0.00017522,2]
[373984267,1753169443197,-460.0,0.00017522,2]
[373984268,1753169443206,-570.24,0.00017522,2]
[373984270,1753169443216,-460.0,0.00017522,2]
[373984273,1753169443226,-710.66,0.00017522,2]
[373984274,1753169443235,-460.0,0.00017523,2]
[373984278,1753169443245,-465.84435024,0.00017523,2]
[373984280,1753169443254,-460.0,0.00017523,2]
[373984282,1753169443263,-464.38507739,0.00017523,2]
[373984284,1753169443272,-460.0,0.00017523,2]
[373984286,1753169443282,-460.0,0.00017523,2]
[373984288,1753169443290,-460.0,0.00017523,2]
[373984290,1753169443300,-600.63772676,0.00017523,2]
[373984292,1753169443309,-460.0,0.00017523,2]
[373984294,1753169443318,-460.0,0.00017523,2]
[373984296,1753169443327,-460.0,0.00017523,2]
[373984298,1753169443336,-460.0,0.00017523,2]
[373984300,1753169443346,-463.48,0.00017524,2]
[373984302,1753169443356,-489.91,0.00017525,2]
[373984304,1753169443365,-460.0,0.00017525,2]
[373984306,1753169443374,-460.0,0.00017525,2]
[373984308,1753169443383,-1141.91,0.00017525,2]
[373984310,1753169443393,-460.0,0.00017525,2]
[373984312,1753169443403,-1514.12,0.00017525,2]
[373984314,1753169443412,-460.0,0.00017525,2]
[373984316,1753169443421,-460.0,0.00017525,2]
[373984318,1753169443432,-989.37,0.00017525,2]
[373984320,1753169443442,-460.0,0.00017525,2]
[373984322,1753169443451,-460.0,0.00017525,2]
[373984324,1753169443461,-460.0,0.00017525,2]
[373984326,1753169443470,-460.0,0.00017525,2]
[373984328,1753169443480,-942.03,0.00017525,2]
[373984330,1753169443491,-460.0,0.00017525,2]
[373984332,1753169443500,-690.84,0.00017525,2]
[373984334,1753169443509,-460.0,0.00017525,2]
[373984336,1753169443518,-460.0,0.00017525,2]
[373984338,1753169443528,-2574.25,0.00017525,2]
[373984340,1753169443537,-460.0,0.00017525,2]
[373984342,1753169443547,-3202.87,0.00017525,2]
[373984344,1753169443556,-460.0,0.00017526,2]
[373984346,1753169443566,-460.0,0.00017526,2]
[373984348,1753169443576,-460.0,0.00017526,2]
[373984350,1753169443585,-460.0,0.00017526,2]
[373984352,1753169443595,-460.0,0.00017526,2]
[373984354,1753169443604,-541.84698452,0.00017526,2]
[373984356,1753169443614,-460.0,0.00017526,2]
[373984358,1753169443624,-460.0,0.00017526,2]
[373984360,1753169443633,-460.0,0.00017526,2]
[373984362,1753169443643,-1127.35,0.00017526,2]
[373984364,1753169443652,-460.0,0.00017526,2]
[373984366,1753169443661,-460.0,0.00017526,2]
[373984368,1753169443671,-460.0,0.00017526,2]
[373984370,1753169443682,-412.6198298,0.00017526,2]
[373984372,1753169443691,-460.0,0.00017526,2]
[373984374,1753169443701,-460.0,0.00017526,2]
[373984376,1753169443710,-460.0,0.00017526,2]
[373984378,1753169443719,-800.84,0.00017527,2]
[373984380,1753169443729,-501.68789834,0.00017543,2]
[373984382,1753169443739,-500.0,0.00017606,2]
[373984384,1753169443749,-500.0,0.00017606,2]
[373984387,1753169443758,-500.0,0.00017606,2]
[373984390,1753169443767,-431.03966901,0.00017606,2]
[373984392,1753169443776,-500.93391383,0.00017606,2]
[373984394,1753169443786,-500.0,0.00017606,2]
[373984396,1753169443795,-500.0,0.00017606,2]
[373984398,1753169443804,-267.62879532,0.00017606,2]
[373984400,1753169443813,-500.0,0.00017606,2]
[373984402,1753169443822,-311.64997016,0.000177,2]
[373984404,1753169443832,-1075.04,0.00017795,2]
[373984406,1753169443841,-460.0,0.00017796,2]
[373984408,1753169443851,-460.0,0.00017796,2]
[373984410,1753169443861,-460.0,0.00017796,2]
[373984412,1753169443875,-460.0,0.00017796,2]
[373984414,1753169443884,-460.0,0.00017796,2]
[373984416,1753169443893,-460.0,0.00017796,2]
[373984418,1753169443902,-460.0,0.00017796,2]
[373984420,1753169443913,-460.0,0.00017796,2]
[373984422,1753169443922,-460.0,0.00017796,2]
[373984424,1753169443934,-460.0,0.00017796,2]
[373984426,1753169443944,-225.30721199,0.00017796,2]
[373984428,1753169443953,-460.0,0.00017796,2]
[373984430,1753169443963,-390.65392384,0.00017796,2]
[373984432,1753169443972,-570.24,0.00017796,2]
[373984434,1753169443981,-460.0,0.00017796,2]
[373984436,1753169443990,-710.66,0.00017796,2]
[373984438,1753169444000,-460.0,0.00017797,2]
[373984440,1753169444010,-575.91424909,0.00017797,2]
[373984442,1753169444019,-460.0,0.00017797,2]
[373984444,1753169444028,-173.52890661,0.00017797,2]
[373984446,1753169444038,-460.0,0.00017797,2]
[373984448,1753169444047,-460.0,0.00017797,2]
[373984451,1753169444060,-460.0,0.00017797,2]
[373984453,1753169444070,-460.0,0.00017797,2]
[373984455,1753169444079,-460.0,0.00017797,2]
[373984457,1753169444089,-489.91,0.00017799,2]
[373984459,1753169444098,-460.0,0.00017799,2]
[373984461,1753169444107,-460.0,0.00017799,2]
[373984462,1753169444117,-1141.91,0.00017799,2]
[373984464,1753169444126,-460.0,0.00017799,2]
[373984467,1753169444135,-1514.12,0.00017799,2]
[373984468,1753169444144,-460.0,0.00017799,2]
[373984471,1753169444154,-482.73,0.00017799,2]
[373984472,1753169444163,-989.37,0.00017799,2]
[373984475,1753169444173,-346.76,0.00017799,2]
[373984476,1753169444183,-460.0,0.00017799,2]
[373984478,1753169444193,-942.03,0.00017799,2]
[373984481,1753169444203,-460.0,0.00017799,2]
[373984482,1753169444212,-690.84,0.00017799,2]
[373984484,1753169444222,-460.0,0.00017799,2]
[373984486,1753169444231,-460.0,0.00017799,2]
[373984488,1753169444242,-2574.25,0.00017799,2]
[373984490,1753169444251,-460.0,0.00017799,2]
[373984492,1753169444260,-3202.87,0.00017799,2]
[373984494,1753169444270,-460.0,0.000178,2]
[373984496,1753169444280,-460.0,0.000178,2]
[373984498,1753169444289,-460.0,0.000178,2]
[373984500,1753169444299,-460.0,0.000178,2]
[373984502,1753169444308,-460.0,0.000178,2]
[373984504,1753169444317,-460.0,0.000178,2]
[373984506,1753169444327,-460.0,0.000178,2]
[373984508,1753169444336,-1127.35,0.000178,2]
[373984510,1753169444346,-176.56943516,0.000178,2]
[373984512,1753169444355,-460.0,0.000178,2]
[373984527,1753169444479,-460.0,0.000178,2]
[373984529,1753169444490,-460.0,0.000178,2]
[373984531,1753169444499,-800.84,0.00017801,2]
[373984533,1753169444508,-1528.78321806,0.000179,2]
[373984535,1753169444518,-500.0,0.00017966,2]
[373984537,1753169444527,-500.0,0.00017966,2]
[373984539,1753169444536,-5920.48076573,0.00017971,2]
[373984541,1753169444545,-10484.35806733,0.00018,2]
[373984543,1753169444554,-155.9383563,0.00018,2]
[373984545,1753169444564,-19407.92206008,0.00018,2]
[373984547,1753169444573,-12715.79386842,0.00018,2]
[373984549,1753169444582,-1075.04,0.00018069,2]
[373984551,1753169444591,-460.0,0.0001807,2]
[373984553,1753169444601,-470.8700511,0.0001807,2]
[373984555,1753169444610,-460.0,0.0001807,2]
[373984557,1753169444619,-460.0,0.0001807,2]
[373984559,1753169444629,-477.9,0.0001807,2]
[373984561,1753169444640,-460.0,0.0001807,2]
[373984563,1753169444649,-512.46606528,0.0001807,2]
[373984565,1753169444659,-460.0,0.0001807,2]
[373984567,1753169444668,-570.24,0.0001807,2]
[373984569,1753169444678,-460.0,0.0001807,2]
[373984571,1753169444687,-710.66,0.0001807,2]
[373984573,1753169444696,-460.0,0.00018071,2]
[373984575,1753169444705,-460.0,0.00018071,2]
[373984577,1753169444714,-318.06874284,0.00018071,2]
[373984579,1753169444723,-460.0,0.00018071,2]
[373984581,1753169444732,-460.0,0.00018071,2]
[373984583,1753169444742,-460.0,0.00018071,2]
[373984584,1753169444751,-489.91,0.00018073,2]
[373984586,1753169444760,-460.0,0.00018073,2]
[373984588,1753169444771,-460.0,0.00018073,2]
[373984590,1753169444780,-1141.91,0.00018073,2]
[373984592,1753169444790,-460.0,0.00018073,2]
[373984595,1753169444801,-1514.12,0.00018073,2]
[373984597,1753169444811,-460.0,0.00018073,2]
[373984599,1753169444820,-989.37,0.00018073,2]
[373984601,1753169444830,-460.0,0.00018073,2]
[373984603,1753169444840,-942.03,0.00018073,2]
[373984605,1753169444849,-405.47,0.00018073,2]
[373984607,1753169444859,-690.84,0.00018073,2]
[373984609,1753169444870,-460.0,0.00018073,2]
[373984611,1753169444880,-460.0,0.00018073,2]
[373984612,1753169444889,-2574.25,0.00018073,2]
[373984613,1753169444898,-460.0,0.00018073,2]
[373984614,1753169444908,-3202.87,0.00018073,2]
[373984615,1753169444918,-460.0,0.00018074,2]
[373984616,1753169444929,-460.0,0.00018074,2]
[373984617,1753169444938,-460.0,0.00018074,2]
[373984619,1753169444947,-460.0,0.00018074,2]
[373984621,1753169444957,-460.0,0.00018074,2]
[373984623,1753169444966,-460.0,0.00018074,2]
[373984625,1753169444976,-460.0,0.00018074,2]
[373984627,1753169444985,-1127.35,0.00018074,2]
[373984629,1753169444996,-460.0,0.00018074,2]
[373984631,1753169445006,-460.0,0.00018074,2]
[373984633,1753169445015,-171.07,0.00018074,2]
[373984635,1753169445024,-800.84,0.00018075,2]
[373984637,1753169445033,-1000.0,0.00018154,2]
[373984639,1753169445043,-500.0,0.00018154,2]
[373984641,1753169445052,-350.74554853,0.00018154,2]
[373984643,1753169445061,-1528.78321787,0.00018176,2]
[373984645,1753169445072,-420.0,0.00018247,2]
[373984647,1753169445082,-476.60259688,0.00018301,2]
[373984649,1753169445092,-526.07605158,0.00018301,2]
[373984651,1753169445101,-160.0,0.00018301,2]
[373984653,1753169445110,-160.0,0.00018301,2]
[373984655,1753169445119,-214.6393183,0.00018301,2]
[373984657,1753169445128,-160.0,0.00018301,2]
[373984659,1753169445137,-12619.94447631,0.00018301,2]
[373984661,1753169445147,-231.06963584,0.00018301,2]
[373984663,1753169445157,-160.0,0.00018301,2]
[373984665,1753169445168,-160.0,0.00018301,2]
[373984667,1753169445177,-160.0,0.00018301,2]
[373984669,1753169445189,-215.80012421,0.00018301,2]
[373984671,1753169445199,-839.90542673,0.00018301,2]
[373984673,1753169445209,-168.0,0.00018301,3]
[373984675,1753169445218,-1075.04,0.00018343,2]
[373984677,1753169445227,-395.50231683,0.00018344,2]
[373984679,1753169445237,-369.06,0.00018344,2]
[373984681,1753169445246,-460.0,0.00018344,2]
[373984683,1753169445255,-460.0,0.00018344,2]
[373984685,1753169445264,-460.0,0.00018344,2]
[373984687,1753169445273,-570.24,0.00018344,2]
[373984689,1753169445282,-460.0,0.00018344,2]
[373984691,1753169445291,-710.66,0.00018344,2]
[373984693,1753169445300,-460.0,0.00018345,2]
[373984695,1753169445309,-460.0,0.00018345,2]
[373984697,1753169445318,-460.0,0.00018345,2]
[373984699,1753169445328,-460.0,0.00018345,2]
[373984701,1753169445337,-489.91,0.00018347,2]
[373984703,1753169445346,-460.0,0.00018347,2]
[373984705,1753169445355,-460.0,0.00018347,2]
[373984707,1753169445364,-1141.91,0.00018347,2]
[373984709,1753169445374,-460.0,0.00018347,2]
[373984712,1753169445393,-1514.12,0.00018347,2]
[373984714,1753169445404,-460.0,0.00018347,2]
[373984716,1753169445414,-989.37,0.00018347,2]
[373984718,1753169445423,-460.0,0.00018347,2]
[373984721,1753169445435,-942.03,0.00018347,2]
[373984723,1753169445445,-690.84,0.00018347,2]
[373984725,1753169445455,-460.0,0.00018347,2]
[373984727,1753169445465,-342.60830233,0.00018347,2]
[373984729,1753169445475,-460.0,0.00018347,2]
[373984731,1753169445484,-2574.25,0.00018347,2]
[373984733,1753169445494,-3202.87,0.00018347,2]
[373984735,1753169445504,-176.37429499,0.00018348,2]
[373984737,1753169445514,-460.0,0.00018348,2]
[373984739,1753169445523,-460.0,0.00018348,2]
[373984741,1753169445533,-460.0,0.00018348,2]
[373984743,1753169445542,-460.0,0.00018348,2]
[373984745,1753169445553,-460.0,0.00018348,2]
[373984747,1753169445562,-460.0,0.00018348,2]
[373984749,1753169445572,-1127.35,0.00018348,2]
[373984751,1753169445581,-460.0,0.00018348,2]
[373984753,1753169445591,-460.0,0.00018348,2]
[373984755,1753169445600,-800.84,0.00018349,2]
[373984757,1753169445610,-160.0,0.00018377,2]
[373984759,1753169445620,-1528.78321787,0.00018452,2]
[373984761,1753169445630,-6477.60696213,0.000185,2]
[373984763,1753169445640,-1075.04,0.00018617,2]
[373984765,1753169445650,-460.0,0.00018618,2]
[373984767,1753169445660,-460.0,0.00018618,2]
[373984769,1753169445670,-460.0,0.00018618,2]
[373984771,1753169445682,-570.24,0.00018618,2]
[373984773,1753169445691,-460.0,0.00018618,2]
[373984775,1753169445701,-710.66,0.00018618,2]
[373984777,1753169445712,-460.0,0.00018619,2]
[373984780,1753169445722,-460.0,0.00018619,2]
[373984782,1753169445733,-460.0,0.00018619,2]
[373984784,1753169445743,-460.0,0.00018619,2]
[373984786,1753169445753,-489.91,0.00018621,2]
[373984788,1753169445762,-460.0,0.00018621,2]
[373984790,1753169445771,-460.0,0.00018621,2]
[373984792,1753169445781,-1141.91,0.00018621,2]
[373984794,1753169445791,-460.0,0.00018621,2]
[373984796,1753169445800,-1514.12,0.00018621,2]
[373984798,1753169445810,-460.0,0.00018621,2]
[373984800,1753169445820,-989.37,0.00018621,2]
[373984802,1753169445830,-460.0,0.00018621,2]
[373984804,1753169445840,-942.03,0.00018621,2]
[373984806,1753169445850,-690.84,0.00018621,2]
[373984808,1753169445859,-460.0,0.00018621,2]
[373984810,1753169445870,-460.0,0.00018621,2]
[373984812,1753169445882,-2574.25,0.00018621,2]
[373984814,1753169445891,-3202.87,0.00018621,2]
[373984816,1753169445901,-460.0,0.00018622,2]
[373984818,1753169445911,-460.0,0.00018622,2]
[373984820,1753169445921,-460.0,0.00018622,2]
[373984822,1753169445932,-460.0,0.00018622,2]
[373984824,1753169445942,-460.0,0.00018622,2]
[373984826,1753169445953,-460.0,0.00018622,2]
[373984828,1753169445962,-1127.35,0.00018622,2]
[373984830,1753169445972,-460.0,0.00018622,2]
[373984832,1753169445981,-460.0,0.00018622,2]
[373984834,1753169445991,-800.84,0.00018623,2]
[373984836,1753169446001,-1528.78321787,0.00018728,2]
[373984838,1753169446010,-500.0,0.00018773,2]
[373984841,1753169446020,-1075.04,0.00018891,2]
[373984843,1753169446030,-460.0,0.00018892,2]
[373984845,1753169446040,-537.89490463,0.00018892,2]
[373984847,1753169446050,-570.24,0.00018892,2]
[373984849,1753169446059,-400.35166416,0.00018892,2]
[373984851,1753169446069,-710.66,0.00018892,2]
[373984853,1753169446078,-460.0,0.00018893,2]
[373984855,1753169446088,-269.2076356,0.00018893,2]
[373984857,1753169446097,-460.0,0.00018893,2]
[373984859,1753169446107,-460.0,0.00018893,2]
[373984861,1753169446118,-489.91,0.00018895,2]
[373984864,1753169446128,-460.0,0.00018895,2]
[373984867,1753169446138,-460.0,0.00018895,2]
[373984870,1753169446147,-1141.91,0.00018895,2]
[373984872,1753169446156,-563.6819367,0.00018895,2]
[373984875,1753169446166,-1514.12,0.00018895,2]
[373984878,1753169446175,-460.0,0.00018895,2]
[373984880,1753169446187,-989.37,0.00018895,2]
[373984883,1753169446197,-460.0,0.00018895,2]
[373984885,1753169446206,-942.03,0.00018895,2]
[373984887,1753169446216,-690.84,0.00018895,2]
[373984889,1753169446225,-460.0,0.00018895,2]
[373984891,1753169446235,-460.0,0.00018895,2]
[373984893,1753169446245,-2574.25,0.00018895,2]
[373984895,1753169446255,-3202.87,0.00018895,2]
[373984897,1753169446265,-317.6,0.00018896,2]
[373984900,1753169446274,-460.0,0.00018896,2]
[373984903,1753169446284,-460.0,0.00018896,2]
[373984906,1753169446301,-460.0,0.00018896,2]
[373984908,1753169446311,-460.0,0.00018896,2]
[373984910,1753169446321,-460.0,0.00018896,2]
[373984912,1753169446331,-1127.35,0.00018896,2]
[373984914,1753169446341,-460.0,0.00018896,2]
[373984916,1753169446351,-460.0,0.00018896,2]
[373984918,1753169446361,-800.84,0.00018897,2]
[373984920,1753169446370,-313.36438424,0.000189,2]
[373984922,1753169446380,-260.0,0.00018925,2]
[373984924,1753169446389,-1528.78321787,0.00019003,2]
[373984926,1753169446399,-1075.04,0.00019165,2]
[373984928,1753169446408,-460.0,0.00019166,2]
[373984930,1753169446418,-570.24,0.00019166,2]
[373984932,1753169446427,-710.66,0.00019166,2]
[373984934,1753169446439,-460.0,0.00019167,2]
[373984936,1753169446448,-460.0,0.00019167,2]
[373984938,1753169446458,-460.0,0.00019167,2]
[373984940,1753169446467,-489.91,0.00019169,2]
[373984942,1753169446476,-460.0,0.00019169,2]
[373984944,1753169446486,-460.0,0.00019169,2]
[373984946,1753169446495,-1141.91,0.00019169,2]
[373984948,1753169446504,-1514.12,0.00019169,2]
[373984950,1753169446514,-460.0,0.00019169,2]
[373984952,1753169446523,-989.37,0.00019169,2]
[373984954,1753169446533,-460.0,0.00019169,2]
[373984956,1753169446542,-942.03,0.00019169,2]
[373984958,1753169446552,-690.84,0.00019169,2]
[373984960,1753169446562,-460.0,0.00019169,2]
[373984962,1753169446571,-460.0,0.00019169,2]
[373984964,1753169446580,-2574.25,0.00019169,2]
[373984966,1753169446589,-3202.87,0.00019169,2]
[373984968,1753169446599,-460.0,0.0001917,2]
[373984970,1753169446608,-460.0,0.0001917,2]
[373984973,1753169446618,-460.0,0.0001917,2]
[373984975,1753169446627,-460.0,0.0001917,2]
[373984977,1753169446637,-347.81249376,0.0001917,2]
[373984979,1753169446646,-1127.35,0.0001917,2]
[373984981,1753169446655,-460.0,0.0001917,2]
[373984983,1753169446665,-460.0,0.0001917,2]
[373984985,1753169446674,-800.84,0.00019171,2]
[373984987,1753169446684,-1528.78321787,0.00019279,2]
[373984989,1753169446694,-100000.0,0.00019329,2]
[373984991,1753169446703,-1075.04,0.00019439,2]
[373984993,1753169446712,-460.0,0.0001944,2]
[373984995,1753169446721,-570.24,0.0001944,2]
[373984997,1753169446730,-710.66,0.0001944,2]
[373984999,1753169446740,-460.0,0.00019441,2]
[373985001,1753169446749,-460.0,0.00019441,2]
[373985003,1753169446758,-460.0,0.00019441,2]
[373985005,1753169446767,-489.91,0.00019443,2]
[373985007,1753169446776,-460.0,0.00019443,2]
[373985009,1753169446786,-460.0,0.00019443,2]
[373985011,1753169446795,-1141.91,0.00019443,2]
[373985013,1753169446804,-1514.12,0.00019443,2]
[373985015,1753169446814,-460.0,0.00019443,2]
[373985017,1753169446823,-989.37,0.00019443,2]
[373985019,1753169446833,-460.0,0.00019443,2]
[373985021,1753169446843,-942.03,0.00019443,2]
[373985023,1753169446852,-690.84,0.00019443,2]
[373985025,1753169446862,-460.0,0.00019443,2]
[373985027,1753169446875,-460.0,0.00019443,2]
[373985029,1753169446886,-2574.25,0.00019443,2]
[373985031,1753169446895,-3202.87,0.00019443,2]
[373985033,1753169446905,-460.0,0.00019444,2]
[373985035,1753169446915,-257.56,0.00019444,2]
[373985037,1753169446925,-460.0,0.00019444,2]
[373985039,1753169446936,-460.0,0.00019444,2]
[373985041,1753169446946,-1127.35,0.00019444,2]
[373985043,1753169446956,-460.0,0.00019444,2]
[373985045,1753169446965,-460.0,0.00019444,2]
[373985047,1753169446974,-800.84,0.00019445,2]
[373985049,1753169446984,-311.64997015,0.0001945,2]
[373985051,1753169446993,-360.0,0.00019473,2]
[373985053,1753169447003,-1528.78321787,0.00019555,2]
[373985055,1753169447013,-460.0,0.00019714,2]
[373985057,1753169447023,-570.24,0.00019714,2]
[373985059,1753169447032,-710.66,0.00019714,2]
[373985061,1753169447041,-460.0,0.00019715,2]
[373985064,1753169447051,-460.0,0.00019715,2]
[373985066,1753169447060,-460.0,0.00019715,2]
[373985068,1753169447069,-489.91,0.00019717,2]
[373985070,1753169447079,-460.0,0.00019717,2]
[373985072,1753169447088,-460.0,0.00019717,2]
[373985073,1753169447097,-1141.91,0.00019717,2]
[373985076,1753169447107,-1514.12,0.00019717,2]
[373985078,1753169447116,-460.0,0.00019717,2]
[373985080,1753169447126,-989.37,0.00019717,2]
[373985082,1753169447135,-460.0,0.00019717,2]
[373985084,1753169447145,-942.03,0.00019717,2]
[373985086,1753169447154,-690.84,0.00019717,2]
[373985088,1753169447167,-166.88,0.00019717,2]
[373985090,1753169447178,-460.0,0.00019717,2]
[373985092,1753169447188,-2574.25,0.00019717,2]
[373985094,1753169447197,-3202.87,0.00019717,2]
[373985096,1753169447207,-460.0,0.00019718,2]
[373985098,1753169447217,-460.0,0.00019718,2]
[373985100,1753169447226,-460.0,0.00019718,2]
[373985102,1753169447236,-1127.35,0.00019718,2]
[373985104,1753169447245,-460.0,0.00019718,2]
[373985106,1753169447254,-460.0,0.00019718,2]
[373985108,1753169447264,-800.84,0.00019719,2]
[373985111,1753169447273,-500.0,0.00019761,2]
[373985113,1753169447283,-151.0,0.00019785,3]
[373985115,1753169447292,-1528.78321787,0.00019831,2]
[373985117,1753169447301,-587.0,0.00019936,2]
[373985119,1753169447311,-512.46627473,0.00019973,2]
[373985121,1753169447320,-460.0,0.00019988,2]
[373985123,1753169447330,-570.24,0.00019988,2]
[373985125,1753169447339,-710.66,0.00019988,2]
[373985127,1753169447349,-460.0,0.00019989,2]
[373985129,1753169447358,-460.0,0.00019989,2]
[373985131,1753169447367,-459.46,0.00019989,2]
[373985133,1753169447376,-489.91,0.00019991,2]
[373985135,1753169447386,-460.0,0.00019991,2]
[373985137,1753169447395,-460.0,0.00019991,2]
[373985139,1753169447405,-1141.91,0.00019991,2]
[373985155,1753169447540,-1514.12,0.00019991,2]
[373985157,1753169447550,-460.0,0.00019991,2]
[373985159,1753169447560,-989.37,0.00019991,2]
[373985161,1753169447569,-460.0,0.00019991,2]
[373985163,1753169447578,-942.03,0.00019991,2]
[373985165,1753169447587,-690.84,0.00019991,2]
[373985167,1753169447596,-460.0,0.00019991,2]
[373985169,1753169447606,-2574.25,0.00019991,2]
[373985171,1753169447615,-3202.87,0.00019991,2]
[373985173,1753169447624,-460.0,0.00019992,2]
[373985175,1753169447634,-460.0,0.00019992,2]
[373985178,1753169447643,-377.64,0.00019992,2]
[373985180,1753169447652,-1127.35,0.00019992,2]
[373985181,1753169447661,-460.0,0.00019992,2]
[373985183,1753169447671,-460.0,0.00019992,2]
[373985186,1753169447680,-800.84,0.00019993,2]
[373985188,1753169447692,-72599.65487924,0.0002,2]
[373985189,1753169447702,-35850.79696441,0.0002,2]
[373985192,1753169447712,-460.0,0.00020021,2]
[373985193,1753169447721,-1528.78321787,0.00020107,2]
[373985195,1753169447730,-178.845486,0.00020187,2]
[373985198,1753169447740,-460.0,0.00020262,2]
[373985200,1753169447749,-570.24,0.00020262,2]
[373985202,1753169447758,-710.66,0.00020262,2]
[373985204,1753169447772,-460.0,0.00020263,2]
[373985206,1753169447782,-489.91,0.00020265,2]
[373985208,1753169447792,-460.0,0.00020265,2]
[373985210,1753169447801,-460.0,0.00020265,2]
[373985212,1753169447811,-1141.91,0.00020265,2]
[373985214,1753169447820,-1514.12,0.00020265,2]
[373985216,1753169447830,-460.0,0.00020265,2]
[373985218,1753169447840,-989.37,0.00020265,2]
[373985220,1753169447849,-460.0,0.00020265,2]
[373985222,1753169447859,-942.03,0.00020265,2]
[373985224,1753169447870,-690.84,0.00020265,2]
[373985226,1753169447881,-224.1,0.00020265,2]
[373985229,1753169447891,-2574.25,0.00020265,2]
[373985231,1753169447901,-3202.87,0.00020265,2]
[373985233,1753169447911,-340.11661612,0.00020266,2]
[373985234,1753169447921,-460.0,0.00020266,2]
[373985237,1753169447931,-1127.35,0.00020266,2]
[373985239,1753169447944,-460.0,0.00020266,2]
[373985240,1753169447953,-460.0,0.00020266,2]
[373985243,1753169447963,-800.84,0.00020267,2]
[373985245,1753169447972,-500.0,0.00020269,2]
[373985246,1753169447981,-500.0,0.00020269,2]
[373985248,1753169447991,-407.95095568,0.00020269,2]
[373985251,1753169448001,-151.0,0.00020296,4]
[373985253,1753169448011,-1528.78321787,0.00020383,3]
[373985255,1753169448020,-460.0,0.00020536,2]
[373985257,1753169448030,-460.0,0.00020536,2]
[373985259,1753169448039,-570.24,0.00020536,2]
[373985261,1753169448049,-710.66,0.00020536,2]
[373985263,1753169448059,-489.91,0.00020539,2]
[373985265,1753169448069,-460.0,0.00020539,2]
[373985267,1753169448079,-460.0,0.00020539,2]
[373985269,1753169448088,-1141.91,0.00020539,2]
[373985271,1753169448098,-1514.12,0.00020539,2]
[373985273,1753169448110,-460.0,0.00020539,2]
[373985275,1753169448120,-989.37,0.00020539,2]